[Event "Live Chess"]
[Site "Chess.com"]
[Date "2023.05.20"]
[Round "-"]
[White "lateforthesky"]
[Black "Hussamalhaidar"]
[Result "1-0"]
[WhiteElo "2107"]
[BlackElo "1030"]
[TimeControl "300"]
[EndTime "15:43:22 PDT"]
[Termination "lateforthesky won on time"]

1. e4 {[%clk 0:04:57.7]} 1... b6 {[%clk 0:04:56.7]} 2. d4 {[%clk 0:04:55.5]}
2... Bb7 {[%clk 0:04:55.9]} 3. Bd3 {[%clk 0:04:55]} 3... e6 {[%clk 0:04:51.1]}
4. c3 {[%clk 0:04:51.6]} 4... c5 {[%clk 0:04:48.1]} 5. Nf3 {[%clk 0:04:48.8]}
5... c4 {[%clk 0:04:41.9]} 6. Bc2 {[%clk 0:04:44.6]} 6... d5 {[%clk 0:04:35.2]}
7. e5 {[%clk 0:04:41.6]} 7... f6 {[%clk 0:04:31.9]} 8. O-O {[%clk 0:04:39]} 8...
fxe5 {[%clk 0:04:22.9]} 9. Nxe5 {[%clk 0:04:37.8]} 9... Nf6 {[%clk 0:04:08.4]}
10. Bg5 {[%clk 0:04:31]} 10... Be7 {[%clk 0:03:54.7]} 11. Bxf6 {[%clk
0:04:24.4]} 11... Bxf6 {[%clk 0:03:41.8]} 12. Qh5+ {[%clk 0:04:10]} 12... g6
{[%clk 0:03:38.8]} 13. Bxg6+ {[%clk 0:04:07.8]} 13... hxg6 {[%clk 0:03:25.8]}
14. Qxg6+ {[%clk 0:04:06.7]} 14... Ke7 {[%clk 0:03:17]} 15. Qf7+ {[%clk
0:04:05.3]} 15... Kd6 {[%clk 0:03:09]} 16. Qxb7 {[%clk 0:04:04.3]} 16... Bxe5
{[%clk 0:02:44.2]} 17. dxe5+ {[%clk 0:04:01.9]} 17... Kxe5 {[%clk 0:02:39.1]}
18. Qxa8 {[%clk 0:03:45.1]} 18... Qc7 {[%clk 0:02:35.6]} 19. Nd2 {[%clk
0:03:40]} 19... Rc8 {[%clk 0:02:28.8]} 20. Rae1+ {[%clk 0:03:25.3]} 20... Kf6
{[%clk 0:02:23.6]} 21. Nf3 {[%clk 0:03:22.6]} 21... Na6 {[%clk 0:02:18.7]} 22.
Qxc8 {[%clk 0:03:19.1]} 22... Qxc8 {[%clk 0:02:16.8]} 23. Re3 {[%clk 0:03:00.4]}
23... Nc5 {[%clk 0:02:13.9]} 24. Rfe1 {[%clk 0:02:58.9]} 24... a5 {[%clk
0:01:45.4]} 25. Nd4 {[%clk 0:02:54.8]} 25... Ne4 {[%clk 0:01:14.6]} 26. Nxe6
{[%clk 0:02:27.3]} 26... Kxe6 {[%clk 0:01:07.7]} 27. f3 {[%clk 0:02:26]} 27...
Kf5 {[%clk 0:01:05.2]} 28. fxe4+ {[%clk 0:02:24.7]} 28... dxe4 {[%clk
0:01:03.1]} 29. Rxe4 {[%clk 0:02:21.8]} 29... Qc5+ {[%clk 0:01:01.5]} 30. Kf1
{[%clk 0:02:15.2]} 30... Qd6 {[%clk 0:00:43.8]} 31. Re5+ {[%clk 0:02:07.5]}
31... Qxe5 {[%clk 0:00:36.4]} 32. Rxe5+ {[%clk 0:02:05.6]} 32... Kxe5 {[%clk
0:00:35.3]} 33. Ke2 {[%clk 0:02:01.2]} 33... Kf4 {[%clk 0:00:31.6]} 34. b3
{[%clk 0:01:46.6]} 34... cxb3 {[%clk 0:00:23.4]} 35. axb3 {[%clk 0:01:44.6]}
35... b5 {[%clk 0:00:22.1]} 36. Kd2 {[%clk 0:01:43.8]} 36... b4 {[%clk
0:00:15.7]} 37. cxb4 {[%clk 0:01:40.9]} 37... axb4 {[%clk 0:00:14.2]} 38. Kd3
{[%clk 0:01:40.2]} 38... Ke5 {[%clk 0:00:11.9]} 39. Kc4 {[%clk 0:01:39.3]} 39...
Kf4 {[%clk 0:00:10.4]} 40. Kxb4 {[%clk 0:01:38.3]} 40... Ke3 {[%clk 0:00:09.4]}
41. Kc5 {[%clk 0:01:36.6]} 41... Kf2 {[%clk 0:00:08.7]} 42. g4 {[%clk
0:01:34.9]} 42... Kg2 {[%clk 0:00:07.4]} 43. g5 {[%clk 0:01:34.1]} 43... Kxh2
{[%clk 0:00:06.8]} 44. g6 {[%clk 0:01:33.3]} 1-0

[Event "Live Chess"]
[Site "Chess.com"]
[Date "2023.05.20"]
[Round "-"]
[White "educatedlad"]
[Black "Delacorta"]
[Result "1/2-1/2"]
[WhiteElo "1628"]
[BlackElo "1430"]
[TimeControl "300"]
[EndTime "15:43:24 PDT"]
[Termination "Game drawn by repetition"]

1. e4 {[%clk 0:04:58.2]} 1... e6 {[%clk 0:04:58.4]} 2. d4 {[%clk 0:04:57]} 2...
d5 {[%clk 0:04:56]} 3. e5 {[%clk 0:04:56.3]} 3... c5 {[%clk 0:04:54.3]} 4. c3
{[%clk 0:04:54.1]} 4... Nc6 {[%clk 0:04:53.1]} 5. Nf3 {[%clk 0:04:53.7]} 5...
Qb6 {[%clk 0:04:49.7]} 6. Bd3 {[%clk 0:04:52.7]} 6... Bd7 {[%clk 0:04:46.6]} 7.
dxc5 {[%clk 0:04:49.2]} 7... Bxc5 {[%clk 0:04:44.6]} 8. b4 {[%clk 0:04:26.6]}
8... Bxf2+ {[%clk 0:04:28.7]} 9. Kf1 {[%clk 0:04:23.6]} 9... Be3 {[%clk
0:04:24.5]} 10. Bxe3 {[%clk 0:04:12.9]} 10... Qxe3 {[%clk 0:04:22.5]} 11. Qe2
{[%clk 0:04:12.8]} 11... Qxe2+ {[%clk 0:04:21.5]} 12. Bxe2 {[%clk 0:04:11.7]}
12... Nge7 {[%clk 0:04:17.2]} 13. a4 {[%clk 0:04:10.5]} 13... Ng6 {[%clk
0:04:15.6]} 14. b5 {[%clk 0:04:08.9]} 14... Ncxe5 {[%clk 0:04:14.5]} 15. Nxe5
{[%clk 0:04:08.5]} 15... Nxe5 {[%clk 0:04:13.7]} 16. Nd2 {[%clk 0:04:07.1]}
16... O-O {[%clk 0:04:08.7]} 17. Rc1 {[%clk 0:03:59]} 17... Rfc8 {[%clk
0:04:07.1]} 18. Kf2 {[%clk 0:03:47.8]} 18... Nc4 {[%clk 0:04:03.1]} 19. Nxc4
{[%clk 0:03:46.2]} 19... dxc4 {[%clk 0:03:59.8]} 20. Rhd1 {[%clk 0:03:46.1]}
20... Be8 {[%clk 0:03:20.1]} 21. Rd4 {[%clk 0:03:40.2]} 21... a6 {[%clk
0:03:03.5]} 22. Rxc4 {[%clk 0:03:30.5]} 22... axb5 {[%clk 0:03:00.3]} 23. Rxc8
{[%clk 0:03:27.8]} 23... Rxc8 {[%clk 0:02:57.7]} 24. axb5 {[%clk 0:03:26.7]}
24... b6 {[%clk 0:02:53.2]} 25. c4 {[%clk 0:03:25.3]} 25... f6 {[%clk
0:02:46.9]} 26. Ra1 {[%clk 0:03:08.5]} 26... Bf7 {[%clk 0:02:38.3]} 27. Ra6
{[%clk 0:03:06.6]} 27... Rb8 {[%clk 0:02:33.1]} 28. Ke3 {[%clk 0:02:59.9]} 28...
e5 {[%clk 0:02:23.9]} 29. Ke4 {[%clk 0:02:58]} 29... g6 {[%clk 0:02:14.2]} 30.
Bd3 {[%clk 0:02:53.5]} 30... Be6 {[%clk 0:02:02.9]} 31. h3 {[%clk 0:02:48]}
31... Bf5+ {[%clk 0:01:55.6]} 32. Ke3 {[%clk 0:02:44.8]} 32... Bxd3 {[%clk
0:01:53.9]} 33. Kxd3 {[%clk 0:02:43.9]} 33... Kf7 {[%clk 0:01:46.1]} 34. g4
{[%clk 0:02:08.3]} 34... h5 {[%clk 0:01:40.9]} 35. Ra7+ {[%clk 0:02:04.9]} 35...
Ke6 {[%clk 0:01:39.7]} 36. gxh5 {[%clk 0:02:03.4]} 36... gxh5 {[%clk 0:01:36]}
37. Rh7 {[%clk 0:02:01.7]} 37... Rd8+ {[%clk 0:01:27.2]} 38. Kc3 {[%clk
0:01:57.8]} 38... Kf5 {[%clk 0:01:01.2]} 39. Rxh5+ {[%clk 0:01:47.5]} 39... Kg6
{[%clk 0:01:00.5]} 40. Rh4 {[%clk 0:01:43]} 40... Kg5 {[%clk 0:00:56.4]} 41. Re4
{[%clk 0:01:39.2]} 41... Kf5 {[%clk 0:00:49.8]} 42. Re3 {[%clk 0:01:31.8]} 42...
e4 {[%clk 0:00:45.4]} 43. Kb4 {[%clk 0:01:28.9]} 43... Kf4 {[%clk 0:00:44.2]}
44. Re1 {[%clk 0:01:19.5]} 44... e3 {[%clk 0:00:37.2]} 45. c5 {[%clk 0:01:15.7]}
45... Rd4+ {[%clk 0:00:31.9]} 46. Kc3 {[%clk 0:01:14.2]} 46... bxc5 {[%clk
0:00:20.9]} 47. Rf1+ {[%clk 0:01:07.3]} 47... Ke5 {[%clk 0:00:15]} 48. Re1
{[%clk 0:01:05.1]} 48... Kf4 {[%clk 0:00:09.5]} 49. Rf1+ {[%clk 0:01:03.1]}
49... Ke5 {[%clk 0:00:08.2]} 50. Re1 {[%clk 0:01:02.3]} 50... Kf4 {[%clk
0:00:07.5]} 1/2-1/2

[Event "Live Chess"]
[Site "Chess.com"]
[Date "2023.05.20"]
[Round "-"]
[White "AttackingSnowLeopard"]
[Black "HonestJoe1"]
[Result "1-0"]
[WhiteElo "2135"]
[BlackElo "2094"]
[TimeControl "300"]
[EndTime "15:43:24 PDT"]
[Termination "AttackingSnowLeopard won on time"]

1. d4 {[%clk 0:04:56.4]} 1... Nf6 {[%clk 0:04:58.1]} 2. c4 {[%clk 0:04:54.1]}
2... c5 {[%clk 0:04:54.8]} 3. d5 {[%clk 0:04:53]} 3... b5 {[%clk 0:04:53.7]} 4.
cxb5 {[%clk 0:04:52.7]} 4... a6 {[%clk 0:04:53]} 5. b6 {[%clk 0:04:52.5]} 5...
Qxb6 {[%clk 0:04:51]} 6. Nc3 {[%clk 0:04:51.9]} 6... d6 {[%clk 0:04:50.3]} 7. e4
{[%clk 0:04:50.7]} 7... Nbd7 {[%clk 0:04:48.7]} 8. Be2 {[%clk 0:04:49.6]} 8...
g6 {[%clk 0:04:47.7]} 9. Nf3 {[%clk 0:04:48.3]} 9... Bg7 {[%clk 0:04:46.8]} 10.
O-O {[%clk 0:04:45.9]} 10... O-O {[%clk 0:04:45.7]} 11. Nd2 {[%clk 0:04:45.2]}
11... Rb8 {[%clk 0:04:44.8]} 12. Nc4 {[%clk 0:04:43.7]} 12... Qa7 {[%clk
0:04:43.9]} 13. Na5 {[%clk 0:04:33.8]} 13... Qc7 {[%clk 0:04:24.5]} 14. Nc6
{[%clk 0:04:32.1]} 14... Ra8 {[%clk 0:04:23.4]} 15. Nxe7+ {[%clk 0:04:30.6]}
15... Kh8 {[%clk 0:04:21.8]} 16. Nc6 {[%clk 0:04:20.8]} 16... Re8 {[%clk
0:04:11.2]} 17. f3 {[%clk 0:04:17.3]} 17... Bb7 {[%clk 0:04:05.6]} 18. Be3
{[%clk 0:04:05.4]} 18... Bxc6 {[%clk 0:04:02.1]} 19. dxc6 {[%clk 0:04:04.2]}
19... Qxc6 {[%clk 0:04:01.6]} 20. Bc4 {[%clk 0:04:02.8]} 20... Ne5 {[%clk
0:03:53.4]} 21. Bd5 {[%clk 0:04:00.6]} 21... Nxd5 {[%clk 0:03:50.4]} 22. Nxd5
{[%clk 0:04:00.5]} 22... Nc4 {[%clk 0:03:41.5]} 23. b3 {[%clk 0:03:42.9]} 23...
Nxe3 {[%clk 0:03:26.2]} 24. Nxe3 {[%clk 0:03:40.7]} 24... Bxa1 {[%clk
0:03:23.4]} 25. Qxa1+ {[%clk 0:03:39.5]} 25... Kg8 {[%clk 0:03:10.4]} 26. Ng4
{[%clk 0:03:10.4]} 26... Re6 {[%clk 0:02:23]} 27. Nh6+ {[%clk 0:02:46.1]} 27...
Kf8 {[%clk 0:02:19.6]} 28. Qh8+ {[%clk 0:02:45.5]} 28... Ke7 {[%clk 0:02:18.2]}
29. Qxh7 {[%clk 0:02:45.2]} 29... Rf8 {[%clk 0:02:08.7]} 30. Qg7 {[%clk
0:02:36.9]} 30... c4 {[%clk 0:02:00.3]} 31. bxc4 {[%clk 0:02:28.2]} 31... Qc5+
{[%clk 0:01:55.5]} 32. Kh1 {[%clk 0:02:25.7]} 32... Qe5 {[%clk 0:01:29.6]} 33.
Qh7 {[%clk 0:02:16.3]} 33... Qh8 {[%clk 0:01:05]} 34. Qxh8 {[%clk 0:02:09.1]}
34... Rxh8 {[%clk 0:01:04.2]} 35. Ng4 {[%clk 0:02:08.8]} 35... Rc8 {[%clk
0:01:01]} 36. Ne3 {[%clk 0:02:06.4]} 36... Re5 {[%clk 0:00:48.2]} 37. Rb1 {[%clk
0:02:02.6]} 37... Ra5 {[%clk 0:00:42.6]} 38. Nd5+ {[%clk 0:01:57.6]} 38... Kf8
{[%clk 0:00:37.6]} 39. Nb6 {[%clk 0:01:54.9]} 39... Rc6 {[%clk 0:00:33.4]} 40.
a4 {[%clk 0:01:52.7]} 40... Kg7 {[%clk 0:00:30.9]} 41. Kg1 {[%clk 0:01:48.7]}
41... Rac5 {[%clk 0:00:26.8]} 42. Kf2 {[%clk 0:01:45.9]} 42... Rc7 {[%clk
0:00:25]} 43. Nd5 {[%clk 0:01:43.2]} 43... Rc8 {[%clk 0:00:22.4]} 44. Ne3 {[%clk
0:01:39.2]} 44... Ra5 {[%clk 0:00:20.1]} 45. Rb4 {[%clk 0:01:35]} 45... Rh8
{[%clk 0:00:14.8]} 46. h3 {[%clk 0:01:33.7]} 46... Rc8 {[%clk 0:00:13.2]} 47.
Ke2 {[%clk 0:01:32.5]} 47... Rg5 {[%clk 0:00:08]} 48. Ng4 {[%clk 0:01:26.9]}
48... f5 {[%clk 0:00:05.6]} 49. Rb7+ {[%clk 0:01:22.5]} 49... Kh8 {[%clk
0:00:02.1]} 50. Nf6 {[%clk 0:01:17.7]} 1-0

[Event "Live Chess"]
[Site "Chess.com"]
[Date "2023.05.20"]
[Round "-"]
[White "GMHarry-youtube"]
[Black "weibs440"]
[Result "1-0"]
[WhiteElo "2008"]
[BlackElo "941"]
[TimeControl "300"]
[EndTime "15:43:27 PDT"]
[Termination "GMHarry-youtube won on time"]

1. e4 {[%clk 0:04:58.8]} 1... d6 {[%clk 0:04:58.6]} 2. d4 {[%clk 0:04:57.3]}
2... Nf6 {[%clk 0:04:57.7]} 3. Nc3 {[%clk 0:04:56.6]} 3... Nbd7 {[%clk
0:04:56.5]} 4. f4 {[%clk 0:04:55.5]} 4... e5 {[%clk 0:04:55.5]} 5. Nf3 {[%clk
0:04:53.8]} 5... exd4 {[%clk 0:04:52.1]} 6. Nxd4 {[%clk 0:04:52.6]} 6... g6
{[%clk 0:04:50.8]} 7. Be3 {[%clk 0:04:51.2]} 7... Bg7 {[%clk 0:04:49]} 8. h3
{[%clk 0:04:50.2]} 8... O-O {[%clk 0:04:47.8]} 9. g4 {[%clk 0:04:38.1]} 9... Re8
{[%clk 0:04:38.9]} 10. Bg2 {[%clk 0:04:36.4]} 10... Nc5 {[%clk 0:04:34.9]} 11.
O-O {[%clk 0:04:29.1]} 11... Nfxe4 {[%clk 0:04:26.8]} 12. Nxe4 {[%clk 0:04:29]}
12... Nxe4 {[%clk 0:04:25.6]} 13. Qd3 {[%clk 0:04:27.1]} 13... Nc5 {[%clk
0:04:13.9]} 14. Qd2 {[%clk 0:04:23.4]} 14... c6 {[%clk 0:03:54.9]} 15. f5 {[%clk
0:04:20.1]} 15... d5 {[%clk 0:03:39.9]} 16. Bh6 {[%clk 0:04:09.4]} 16... Ne4
{[%clk 0:02:47.7]} 17. Qc1 {[%clk 0:04:02.4]} 17... Bxh6 {[%clk 0:02:34.2]} 18.
Qxh6 {[%clk 0:03:59.1]} 18... Nf6 {[%clk 0:02:32.6]} 19. g5 {[%clk 0:03:54.1]}
19... c5 {[%clk 0:01:38.9]} 20. Qxg6+ {[%clk 0:03:48.4]} 20... hxg6 {[%clk
0:01:24.4]} 21. gxf6 {[%clk 0:03:43.6]} 21... cxd4 {[%clk 0:01:19.9]} 22. fxg6
{[%clk 0:03:42.1]} 22... fxg6 {[%clk 0:01:17.6]} 23. f7+ {[%clk 0:03:41.2]}
23... Kg7 {[%clk 0:01:11.4]} 24. fxe8=Q {[%clk 0:03:39]} 24... Qxe8 {[%clk
0:01:10.1]} 25. Rae1 {[%clk 0:03:36.6]} 25... Qg8 {[%clk 0:00:49.5]} 26. Re7+
{[%clk 0:03:34.5]} 26... Kh6 {[%clk 0:00:46.1]} 27. Rfe1 {[%clk 0:03:20.6]}
27... Bf5 {[%clk 0:00:41.8]} 28. R1e5 {[%clk 0:03:12]} 28... Bxc2 {[%clk
0:00:32.8]} 29. Bxd5 {[%clk 0:03:09.8]} 29... Qf8 {[%clk 0:00:25.9]} 30. Rf7
{[%clk 0:03:08.1]} 30... Qb4 {[%clk 0:00:19]} 31. Ree7 {[%clk 0:03:01.7]} 31...
Rh8 {[%clk 0:00:13.9]} 32. h4 {[%clk 0:02:58.9]} 32... Qd2 {[%clk 0:00:09.6]}
33. Rf2 {[%clk 0:02:48.6]} 33... Qd1+ {[%clk 0:00:08.3]} 34. Kh2 {[%clk
0:02:45.2]} 34... Qg4 {[%clk 0:00:06.2]} 35. h5 {[%clk 0:02:39.9]} 35... Qh4+
{[%clk 0:00:04]} 36. Kg1 {[%clk 0:02:38.5]} 36... Qg4+ {[%clk 0:00:02.8]} 37.
Rg2 {[%clk 0:02:36.5]} 37... Qd1+ {[%clk 0:00:01.8]} 38. Kf2 {[%clk 0:02:33.6]}
38... Qd2+ {[%clk 0:00:00.2]} 39. Re2 {[%clk 0:02:31.3]} 1-0

[Event "Live Chess"]
[Site "Chess.com"]
[Date "2023.05.20"]
[Round "-"]
[White "siddu198"]
[Black "domrobson"]
[Result "0-1"]
[WhiteElo "1623"]
[BlackElo "1787"]
[TimeControl "300"]
[EndTime "15:43:29 PDT"]
[Termination "domrobson won by resignation"]

1. e4 {[%clk 0:04:51.7]} 1... e5 {[%clk 0:04:59]} 2. Nf3 {[%clk 0:04:50.5]} 2...
Nf6 {[%clk 0:04:58.4]} 3. Nxe5 {[%clk 0:04:48.2]} 3... d6 {[%clk 0:04:57.3]} 4.
Nf3 {[%clk 0:04:46.8]} 4... Nxe4 {[%clk 0:04:56.8]} 5. Nc3 {[%clk 0:04:46.4]}
5... Nxc3 {[%clk 0:04:55.4]} 6. dxc3 {[%clk 0:04:45.8]} 6... Qe7+ {[%clk
0:04:54.3]} 7. Be3 {[%clk 0:04:45.3]} 7... Nc6 {[%clk 0:04:52.7]} 8. Bb5 {[%clk
0:04:44.5]} 8... Bd7 {[%clk 0:04:51.7]} 9. Bxc6 {[%clk 0:04:44.4]} 9... Bxc6
{[%clk 0:04:50.8]} 10. Qe2 {[%clk 0:04:44]} 10... O-O-O {[%clk 0:04:50]} 11. O-O
{[%clk 0:04:42.6]} 11... Re8 {[%clk 0:04:49.1]} 12. Rfe1 {[%clk 0:04:41.9]}
12... g6 {[%clk 0:04:47.3]} 13. c4 {[%clk 0:04:40.7]} 13... Bh6 {[%clk
0:04:45.7]} 14. Nd4 {[%clk 0:04:17.3]} 14... Bxe3 {[%clk 0:04:41.5]} 15. Nxc6
{[%clk 0:04:07.8]} 15... bxc6 {[%clk 0:04:40.6]} 16. Qxe3 {[%clk 0:04:02.7]}
16... Qxe3 {[%clk 0:04:39.3]} 17. Rxe3 {[%clk 0:04:02.6]} 17... Rxe3 {[%clk
0:04:38.2]} 18. fxe3 {[%clk 0:04:02.5]} 18... Kd7 {[%clk 0:04:37.8]} 19. Kf2
{[%clk 0:03:58.3]} 19... Ke6 {[%clk 0:04:35.8]} 20. Kf3 {[%clk 0:03:57]} 20...
Ke5 {[%clk 0:04:34.5]} 21. Rd1 {[%clk 0:03:54.4]} 21... Rb8 {[%clk 0:04:32.3]}
22. b3 {[%clk 0:03:53]} 22... h5 {[%clk 0:04:28.3]} 23. h3 {[%clk 0:03:51.1]}
23... g5 {[%clk 0:04:25.9]} 24. g3 {[%clk 0:03:43.4]} 24... f5 {[%clk
0:04:24.5]} 25. c3 {[%clk 0:03:38.4]} 25... g4+ {[%clk 0:04:22.1]} 26. hxg4
{[%clk 0:03:38.3]} 26... hxg4+ {[%clk 0:04:21.6]} 27. Ke2 {[%clk 0:03:34.7]}
27... Rh8 {[%clk 0:04:21.1]} 28. Kd3 {[%clk 0:03:30]} 28... Rh2 {[%clk
0:04:19.1]} 29. c5 {[%clk 0:03:24.3]} 29... d5 {[%clk 0:04:17.5]} 30. c4 {[%clk
0:03:21.9]} 30... Rxa2 {[%clk 0:04:15.1]} 31. cxd5 {[%clk 0:03:16.2]} 31... cxd5
{[%clk 0:04:14.1]} 32. Kc3 {[%clk 0:03:15.1]} 32... c6 {[%clk 0:04:12.7]} 33.
Kb4 {[%clk 0:03:14.1]} 33... a5+ {[%clk 0:04:09.8]} 34. Kc3 {[%clk 0:03:10.9]}
34... Rg2 {[%clk 0:04:08.8]} 35. Ra1 {[%clk 0:03:07.9]} 35... Rxg3 {[%clk
0:04:07.8]} 36. Kd3 {[%clk 0:03:06.8]} 36... f4 {[%clk 0:04:06.4]} 37. Rxa5
{[%clk 0:03:02.4]} 37... Rxe3+ {[%clk 0:04:05.4]} 38. Kd2 {[%clk 0:03:00.3]}
38... Rxb3 {[%clk 0:04:03.8]} 39. Ra8 {[%clk 0:02:58.1]} 39... Rb5 {[%clk
0:04:01.7]} 40. Re8+ {[%clk 0:02:58]} 40... Kd4 {[%clk 0:04:00.2]} 41. Rf8
{[%clk 0:02:56.4]} 41... f3 {[%clk 0:03:58.9]} 42. Rf4+ {[%clk 0:02:52.9]} 42...
Kxc5 {[%clk 0:03:58.1]} 43. Rxg4 {[%clk 0:02:52.8]} 43... Rb4 {[%clk 0:03:56.5]}
44. Rg3 {[%clk 0:02:51.4]} 44... Rf4 {[%clk 0:03:53.9]} 45. Ke3 {[%clk
0:02:50.1]} 45... f2 {[%clk 0:03:52.5]} 0-1

[Event "Live Chess"]
[Site "Chess.com"]
[Date "2023.05.20"]
[Round "-"]
[White "manthanit"]
[Black "Ed_Knox"]
[Result "1-0"]
[WhiteElo "1048"]
[BlackElo "1442"]
[TimeControl "300"]
[EndTime "15:43:37 PDT"]
[Termination "manthanit won on time"]

1. e4 {[%clk 0:04:58.9]} 1... d5 {[%clk 0:04:58.1]} 2. exd5 {[%clk 0:04:57.9]}
2... Qxd5 {[%clk 0:04:57.2]} 3. Nf3 {[%clk 0:04:57.4]} 3... c6 {[%clk
0:04:55.5]} 4. Nc3 {[%clk 0:04:56.8]} 4... Qd8 {[%clk 0:04:52.6]} 5. d4 {[%clk
0:04:55.4]} 5... Bf5 {[%clk 0:04:51.7]} 6. Be2 {[%clk 0:04:52.3]} 6... e6 {[%clk
0:04:50.5]} 7. h3 {[%clk 0:04:50.6]} 7... Nf6 {[%clk 0:04:49.4]} 8. a3 {[%clk
0:04:48.6]} 8... Be7 {[%clk 0:04:45.6]} 9. O-O {[%clk 0:04:47]} 9... O-O {[%clk
0:04:44.4]} 10. Bc4 {[%clk 0:04:33.6]} 10... Nbd7 {[%clk 0:04:39]} 11. Bb3
{[%clk 0:04:28.9]} 11... Qc7 {[%clk 0:04:33.6]} 12. Nh4 {[%clk 0:04:14.1]} 12...
Rad8 {[%clk 0:03:53.1]} 13. Nxf5 {[%clk 0:04:10.9]} 13... exf5 {[%clk 0:03:52]}
14. Qf3 {[%clk 0:04:09.2]} 14... g6 {[%clk 0:03:49.6]} 15. Bf4 {[%clk
0:03:56.6]} 15... Bd6 {[%clk 0:03:46.8]} 16. Bxd6 {[%clk 0:03:54]} 16... Qxd6
{[%clk 0:03:44.4]} 17. Rfe1 {[%clk 0:03:49.7]} 17... Rfe8 {[%clk 0:03:24.4]} 18.
Rxe8+ {[%clk 0:03:40.9]} 18... Rxe8 {[%clk 0:03:22.9]} 19. Ne2 {[%clk
0:03:26.2]} 19... Ne4 {[%clk 0:03:21.1]} 20. Rd1 {[%clk 0:03:18]} 20... Ndc5
{[%clk 0:03:08.7]} 21. Nc3 {[%clk 0:03:10]} 21... Nxb3 {[%clk 0:02:55.9]} 22.
cxb3 {[%clk 0:03:08.3]} 22... Ng5 {[%clk 0:02:23.9]} 23. Qd3 {[%clk 0:02:53.9]}
23... Ne6 {[%clk 0:02:16.5]} 24. d5 {[%clk 0:02:45]} 24... Rd8 {[%clk 0:02:10]}
25. Qe3 {[%clk 0:02:16.3]} 25... Nc5 {[%clk 0:01:50.3]} 26. dxc6 {[%clk
0:02:11.2]} 26... Qxd1+ {[%clk 0:01:33.2]} 27. Nxd1 {[%clk 0:02:10]} 27... Rxd1+
{[%clk 0:01:32.2]} 28. Kh2 {[%clk 0:02:09.1]} 28... bxc6 {[%clk 0:01:18.6]} 29.
Qxc5 {[%clk 0:02:07.3]} 29... Rd2 {[%clk 0:01:04]} 30. Qxa7 {[%clk 0:02:01.5]}
30... Rxb2 {[%clk 0:01:01.8]} 31. Qb6 {[%clk 0:01:57]} 31... Kg7 {[%clk
0:00:54.8]} 32. Qd4+ {[%clk 0:01:54.9]} 32... f6 {[%clk 0:00:51]} 33. Qxb2
{[%clk 0:01:53.7]} 33... g5 {[%clk 0:00:46.9]} 34. Qc3 {[%clk 0:01:52.8]} 34...
f4 {[%clk 0:00:46.2]} 35. Qxc6 {[%clk 0:01:51.9]} 35... h5 {[%clk 0:00:45.6]}
36. b4 {[%clk 0:01:51.2]} 36... Kg6 {[%clk 0:00:45]} 37. b5 {[%clk 0:01:50.4]}
37... g4 {[%clk 0:00:44.5]} 38. b6 {[%clk 0:01:49.7]} 38... h4 {[%clk
0:00:40.9]} 39. hxg4 {[%clk 0:01:48.5]} 39... Kg5 {[%clk 0:00:33.2]} 40. f3
{[%clk 0:01:46.1]} 40... f5 {[%clk 0:00:30.3]} 41. gxf5 {[%clk 0:01:44.6]} 41...
h3 {[%clk 0:00:28.3]} 42. gxh3 {[%clk 0:01:42.9]} 42... Kh4 {[%clk 0:00:27.3]}
43. Qc4 {[%clk 0:01:39.9]} 43... Kh5 {[%clk 0:00:22.9]} 44. b7 {[%clk
0:01:32.3]} 44... Kg5 {[%clk 0:00:19.3]} 45. Qf1 {[%clk 0:01:28.5]} 45... Kh4
{[%clk 0:00:16.9]} 46. a4 {[%clk 0:01:27.9]} 46... Kh5 {[%clk 0:00:15.9]} 47. a5
{[%clk 0:01:27.4]} 47... Kh4 {[%clk 0:00:14.7]} 48. a6 {[%clk 0:01:27]} 48...
Kg5 {[%clk 0:00:14.3]} 49. a7 {[%clk 0:01:26.2]} 49... Kh5 {[%clk 0:00:13.9]}
50. f6 {[%clk 0:01:25.5]} 50... Kh4 {[%clk 0:00:13.5]} 51. f7 {[%clk 0:01:25]}
51... Kg5 {[%clk 0:00:13.3]} 52. h4+ {[%clk 0:01:21.8]} 52... Kh5 {[%clk
0:00:12.9]} 53. Kh3 {[%clk 0:01:20.4]} 53... Kg6 {[%clk 0:00:10.1]} 54. Kg4
{[%clk 0:01:19.4]} 54... Kh6 {[%clk 0:00:09.3]} 55. Kxf4 {[%clk 0:01:18.7]}
55... Kg6 {[%clk 0:00:08.6]} 56. Kg4 {[%clk 0:01:18.1]} 56... Kh6 {[%clk
0:00:08.4]} 57. f4 {[%clk 0:01:17.5]} 57... Kg6 {[%clk 0:00:08.1]} 58. h5+
{[%clk 0:01:16.3]} 58... Kh6 {[%clk 0:00:07.6]} 59. Kh4 {[%clk 0:01:15.7]} 59...
Kg7 {[%clk 0:00:07.2]} 60. Qg2+ {[%clk 0:01:14]} 60... Kxf7 {[%clk 0:00:06.8]}
61. Qg6+ {[%clk 0:01:12.6]} 61... Ke7 {[%clk 0:00:05.8]} 62. h6 {[%clk
0:01:11.9]} 62... Kd7 {[%clk 0:00:05.4]} 63. Qg7+ {[%clk 0:01:07.8]} 63... Kd6
{[%clk 0:00:04.2]} 64. h7 {[%clk 0:01:05.6]} 64... Ke6 {[%clk 0:00:03.9]} 65.
Qe5+ {[%clk 0:01:02.3]} 65... Kf7 {[%clk 0:00:01.3]} 66. f5 {[%clk 0:01:01.4]}
1-0

[Event "Live Chess"]
[Site "Chess.com"]
[Date "2023.05.20"]
[Round "-"]
[White "Doge_Dandolo"]
[Black "LL220284LL"]
[Result "1-0"]
[WhiteElo "2043"]
[BlackElo "2385"]
[TimeControl "300"]
[EndTime "15:43:43 PDT"]
[Termination "Doge_Dandolo won by resignation"]

1. Nf3 {[%clk 0:04:54.4]} 1... b6 {[%clk 0:04:57.5]} 2. g3 {[%clk 0:04:52.3]}
2... Bb7 {[%clk 0:04:56]} 3. Bg2 {[%clk 0:04:51.9]} 3... c5 {[%clk 0:04:54.7]}
4. c4 {[%clk 0:04:51]} 4... e6 {[%clk 0:04:54]} 5. O-O {[%clk 0:04:50.4]} 5...
Nf6 {[%clk 0:04:53.1]} 6. Nc3 {[%clk 0:04:48.1]} 6... Be7 {[%clk 0:04:52.1]} 7.
Re1 {[%clk 0:04:47]} 7... d5 {[%clk 0:04:50.7]} 8. cxd5 {[%clk 0:04:45]} 8...
Nxd5 {[%clk 0:04:49.7]} 9. Nxd5 {[%clk 0:04:43.9]} 9... exd5 {[%clk 0:04:47]}
10. d4 {[%clk 0:04:42.9]} 10... O-O {[%clk 0:04:45.1]} 11. Bf4 {[%clk
0:04:36.4]} 11... Nc6 {[%clk 0:04:43.3]} 12. Rc1 {[%clk 0:04:34]} 12... cxd4
{[%clk 0:04:38.1]} 13. Nxd4 {[%clk 0:04:32.9]} 13... Nxd4 {[%clk 0:04:38]} 14.
Qxd4 {[%clk 0:04:30.6]} 14... Bc5 {[%clk 0:04:35.5]} 15. Qd2 {[%clk 0:04:29.1]}
15... Qd7 {[%clk 0:04:29.1]} 16. b4 {[%clk 0:04:25.8]} 16... Be7 {[%clk
0:04:25.7]} 17. Rc7 {[%clk 0:04:23.5]} 17... Qa4 {[%clk 0:04:17.7]} 18. Rxe7
{[%clk 0:04:14.9]} 18... Ba6 {[%clk 0:04:16.5]} 19. Bxd5 {[%clk 0:04:04.9]}
19... Rad8 {[%clk 0:04:11.8]} 20. Rd1 {[%clk 0:03:51.1]} 20... Bc4 {[%clk
0:04:01.3]} 21. e4 {[%clk 0:03:47.2]} 21... Qxa2 {[%clk 0:03:52.7]} 22. Qxa2
{[%clk 0:03:45]} 22... Bxa2 {[%clk 0:03:52.6]} 23. Rxa7 {[%clk 0:03:41.8]} 23...
Bc4 {[%clk 0:03:48.6]} 24. Rc7 {[%clk 0:03:32]} 24... Be2 {[%clk 0:03:46.7]} 25.
Rd2 {[%clk 0:03:29.3]} 25... Bg4 {[%clk 0:03:45.5]} 26. Rxf7 {[%clk 0:03:19]}
1-0